[Event "10th Cesme Open-A 2024"]
[Site "Cesme"]
[Date "2024.06.25"]
[Round "4"]
[White "Durak, Can"]
[Black "Erten, Kerem"]
[Result "1-0"]
[ECO "D80"]
[WhiteElo "2442"]
[BlackElo "2277"]
[Annotator "TA"]
[PlyCount "93"]
[EventDate "2024.06.23"]
[EventType "swiss"]
[EventCountry "TUR"]
[SourceTitle "playchess.com"]
[Source "ChessBase"]
[SourceQuality "1"]
[TimeControl "5400+30"]

{[%evp 22,93,11,16,12,0,12,7,16,4,45,12,46,0,30,29,48,63,59,63,76,68,76,72,55,56,65,17,86,66,142,120,148,140,142,141,143,140,140,135,140,133,139,133,194,191,178,175,261,261,419,414,403,329,360,360,347,278,452,429,477,477,459,448,1363,1373,1181,1133,5427,4875,2453,3253,1453,1164]} 1. d4 {[%emt 0:08:00]} Nf6 {[%emt 0:01:00]} 2. c4 {[%emt 0:00:30]} g6 {[%emt 0:00:30]} 3. Nc3 {[%emt 0:00:30]} d5 {[%emt 0:00:00]} 4. Nf3 {[%emt 0:00:00]} Bg7 {[%emt 0:00:00]} 5. Bg5 {[%emt 0:00:00]} Ne4 {[%emt 0:00:30]} 6. Bf4 {[%emt 0:00:30]} Nxc3 {[%emt 0:00:30]} 7. bxc3 {[%emt 0:00:00]} c5 {[%emt 0:00:30]} 8. e3 {[%emt 0:00:00]} O-O {[%emt 0:01:30]} 9. cxd5 {[%emt 0:00:30]} cxd4 {[%emt 0:00:00]} 10. cxd4 {[%emt 0:00:30]} Qxd5 {[%emt 0:01:00]} 11. Be2 {[%emt 0:00:00]} Nc6 {[%emt 0:01:30]} 12. O-O {[%emt 0:00:00]} b6 {[%emt 0:13:30]} 13. Rc1 {[%emt 0:06:30]} Bb7 {[%emt 0:02:30]} 14. Bc4 {[%emt 0:01:30]} Qd7 {[%emt 0:06:30] The position is equal.} 15. Qa4 {[%emt 0:12:30]} a6 {[%emt 0:05:30] aiming for ...b5.} 16. Be2 {[%emt 0:01:30]} b5 {[%emt 0:11:30]} 17. Qb3 {[%emt 0:00:30]} (17. Qa3 $14) 17... Rac8 {[%emt 0:01:30]} 18. a4 {[%emt 0:02:30]} bxa4 {[%emt 0:03:30]} 19. Qxa4 {[%emt 0:00:30][%cal Oc1a1]} e5 {[%emt 0:03:30]} 20. dxe5 {[%emt 0:03:30]} Nxe5 {[%emt 0:00:30]} 21. Qxd7 {[%emt 0:00:30]} Nxd7 {[%emt 0:00:30]} 22. Rb1 {[%emt 0:00:30][%cal Bc1b1,Bb1b5,Bb5c5][%mdl 32]} Bxf3 {[%emt 0:00:30]} 23. gxf3 {[%emt 0:00:30]} a5 {[%emt 0:06:30][%cal Ba6a5,Ba5a4][%mdl 32]} 24. Rfd1 {[%emt 0:05:30]} (24. Rb5 $14) 24... Ne5 {[%emt 0:09:30]} (24... Nc5 $11 {remains equal.}) 25. Rb5 {[%emt 0:06:30][%csl LRa5,LRe5] White leaves nothing to chance now.} Nc6 {[%emt 0:02:30]} ({Black should play} 25... Rc2 $1 $14) 26. Rc5 $1 $36 {[%emt 0:00:30][%mdl 2048] And now Ba6 would win. White is really pushing. Black is weak on the light squares} a4 {[%emt 0:01:30]} 27. Ba6 $1 {[%emt 0:04:30] White is much more active.} ({Much less strong is} 27. Bb5 $6 Ne5 28. Rxc8 (28. Rxe5 Bxe5 29. Bxe5 Rc5 $15) 28... Rxc8 $14) 27... Rcd8 {[%emt 0:01:30]} 28. Rxd8 {[%emt 0:00:30]} Nxd8 {[%emt 0:00:30] [#]} 29. Bd6 $1 {[%emt 0:00:30]} Re8 {[%emt 0:03:30] [#]} 30. Rc8 $1 {[%emt 0:00:00]} Bf6 {[%emt 0:01:30] Hoping for ...Re6.} 31. Bb5 {[%emt 0:01:00][%csl LRa4,LRe8]} a3 {[%emt 0:01:30]} 32. Bxa3 {[%emt 0:00:30]} ({Resist} 32. Bxe8 a2 33. Rc1 a1=Q 34. Rxa1 Bxa1 $14) 32... Re6 {[%emt 0:02:01]} (32... Re5 $16) 33. Bc5 $18 {[%emt 0:00:30]} Kg7 {[%emt 0:00:35]} 34. f4 {[%emt 0:01:30] Repels Re5} h5 {[%emt 0:01:43]} (34... h6 $142 35. Kg2 h5) 35. Kg2 {[%emt 0:00:30]} g5 $2 {[%emt 0:04:01]} (35... Kh7 36. Bc4 Re4) 36. fxg5 {[%emt 0:01:30]} Bxg5 {[%emt 0:00:30]} 37. Bd4+ {[%emt 0:00:00]} Kh6 {[%emt 0:06:52]} 38. f4 {[%emt 0:00:00]} Bh4 {[%emt 0:01:08]} 39. Kf3 {[%emt 0:05:30] Threatens to win with Bc5.} Rg6 $2 {[%emt 0:02:11]} (39... Rd6 40. Rb8 Ne6 41. Rh8+ Kg6 42. f5+ Kxf5 43. Rxh5+ Ng5+ 44. Kg2 Be1) 40. Bd3 {[%emt 0:00:30] White is clearly winning.} Rc6 {[%emt 0:01:04]} 41. Ra8 {[%emt 0:00:30]} Be7 {[%emt 0:00:36]} 42. Be4 {[%emt 0:01:30]} Rc1 {[%emt 0:02:26]} (42... Rc7 $142 43. Ra6+ f6 44. Bxf6 Bxf6 45. Rxf6+ Kg7) 43. Ra6+ {[%emt 0:00:30]} f6 {[%emt 0:00:02]} 44. Ra7 {[%emt 0:00:30]} f5 {[%emt 0:01:15]} 45. Bxf5 {[%emt 0:00:00] A strong pair of Bishops.} Nc6 {[%emt 0:00:21]} 46. Ra6 {[%emt 0:00:00]} Bd6 {[%emt 0:00:30]} 47. Be4 {[%emt 0:00:30] Weighted Error Value: White=0.10 (very precise) /Black=0.32.  Mistake:       	White=2     	Black=7      Inaccurate:     	White=1     	Black=3      OK:         	White=14    	Black=8      Best:        	White=2     	Black=2      Strong:       	White=2     	---} 1-0

[Event "10th Cesme Open-A 2024"]
[Site "Cesme"]
[Date "2024.06.25"]
[Round "4"]
[White "Yermolinsky, Alex"]
[Black "Ozdemir, Serhan Berat"]
[Result "1-0"]
[ECO "A65"]
[WhiteElo "2421"]
[BlackElo "2225"]
[Annotator "RC"]
[PlyCount "103"]
[EventDate "2024.06.23"]
[EventType "swiss"]
[EventCountry "TUR"]
[SourceTitle "playchess.com"]
[Source "ChessBase"]
[SourceQuality "1"]
[TimeControl "5400+30"]

1. d4 {[%emt 0:01:00]} Nf6 {[%emt 0:03:00]} 2. c4 {[%emt 0:00:30]} g6 {[%emt 0:00:30]} 3. Nc3 {[%emt 0:00:00]} Bg7 {[%emt 0:00:00]} 4. e4 {[%emt 0:00:00]} d6 {[%emt 0:00:00]} 5. h3 {[%emt 0:00:30]} O-O {[%emt 0:00:00]} 6. Bg5 {[%emt 0:00:00]} h6 {[%emt 0:01:00]} 7. Be3 {[%emt 0:00:00]} c5 {[%emt 0:02:30]} 8. d5 {[%emt 0:00:30]} e6 {[%emt 0:00:00]} 9. Bd3 {[%emt 0:04:30]} Re8 {[%emt 0:07:00]} 10. Nf3 {[%emt 0:00:30]} exd5 {[%emt 0:00:00]} 11. cxd5 {[%emt 0:04:30]} a6 {[%emt 0:03:00]} 12. a4 {[%emt 0:00:30]} Nbd7 {[%emt 0:00:00]} 13. O-O {[%emt 0:00:30]} c4 {[%emt 0:02:00]} 14. Bc2 {[%emt 0:00:00]} Qc7 {[%emt 0:01:30]} 15. Re1 {[%emt 0:09:00]} Kh7 {[%emt 0:02:30]} 16. Bd4 {[%emt 0:03:30]} Ne5 {[%emt 0:01:30]} 17. Nxe5 {[%emt 0:00:30]} dxe5 {[%emt 0:00:30]} 18. Be3 {[%emt 0:00:00]} Bd7 {[%emt 0:09:30]} 19. a5 {[%emt 0:00:00]} Qd6 {[%emt 0:04:30]} 20. Na4 {[%emt 0:05:30]} Rac8 {[%emt 0:01:30]} 21. Nb6 {[%emt 0:05:30]} Rc7 {[%emt 0:00:30]} 22. Nxd7 {[%emt 0:04:30]} Nxd7 {[%emt 0:00:00]} 23. Ba4 {[%emt 0:00:30]} Rec8 {[%emt 0:02:00]} 24. Bxd7 {[%emt 0:00:30]} Rxd7 {[%emt 0:00:00]} 25. Qc2 {[%emt 0:02:30]} Bf6 {[%emt 0:14:00]} 26. Ra4 {[%emt 0:05:30]} Bd8 {[%emt 0:00:30]} 27. Rc1 {[%emt 0:11:30]} h5 {[%emt 0:02:30]} 28. Rxc4 {[%emt 0:13:30]} Rxc4 {[%emt 0:00:30]} 29. Qxc4 {[%emt 0:00:00]} Bxa5 {[%emt 0:01:30]} 30. Bc5 {[%emt 0:00:00]} Qc7 {[%emt 0:01:30]} 31. b4 {[%emt 0:00:30]} Bb6 {[%emt 0:00:30]} 32. Qc3 {[%emt 0:00:30]} f6 {[%emt 0:00:30]} 33. Qe3 {[%emt 0:03:30]} Bxc5 {[%emt 0:01:30]} 34. bxc5 {[%emt 0:00:30]} Rg7 {[%emt 0:00:00]} 35. c6 {[%emt 0:07:32]} bxc6 {[%emt 0:00:00]} 36. Rxc6 {[%emt 0:00:28]} Qa7 {[%emt 0:00:30]} 37. Qd3 {[%emt 0:05:25]} Rc7 {[%emt 0:00:30]} 38. Rxf6 {[%emt 0:02:58]} a5 {[%emt 0:00:00]} 39. Rc6 {[%emt 0:07:29]} Rf7 {[%emt 0:00:00]} 40. Qg3 {[%emt 0:01:26]} Rg7 {[%emt 0:00:30]} 41. Qxe5 {[%emt 0:00:52]} a4 {[%emt 0:00:00]} 42. d6 {[%emt 0:00:57]} a3 {[%emt 0:00:00]} 43. Qa1 {[%emt 0:01:54]} Qa4 {[%emt 0:01:30]} 44. Rc7 {[%emt 0:00:44]} Rxc7 {[%emt 0:00:30]} 45. dxc7 {[%emt 0:00:00]} Qa6 {[%emt 0:00:00]} 46. c8=Q {[%emt 0:00:45]} Qxc8 {[%emt 0:00:00]} 47. Qxa3 {[%emt 0:00:30]} Qc2 {[%emt 0:00:00]} 48. Qe7+ {[%emt 0:00:00]} Kh6 {[%emt 0:00:00]} 49. Qf8+ {[%emt 0:00:25]} Kh7 {[%emt 0:00:30]} 50. Qf7+ {[%emt 0:00:00]} Kh6 {[%emt 0:00:00]} 51. Qf4+ {[%emt 0:00:12]} Kg7 {[%emt 0:00:00]} 52. h4 {[%emt 0:00:00]} 1-0

[Event "10th Cesme Open-A 2024"]
[Site "Cesme"]
[Date "2024.06.25"]
[Round "4"]
[White "Pacher, Milan"]
[Black "Demirbag, Alihan"]
[Result "1-0"]
[ECO "B42"]
[WhiteElo "2387"]
[BlackElo "2055"]
[Annotator "RC"]
[PlyCount "75"]
[EventDate "2024.06.23"]
[EventType "swiss"]
[EventCountry "TUR"]
[SourceTitle "playchess.com"]
[Source "ChessBase"]
[SourceQuality "1"]
[TimeControl "5400+30"]

1. e4 {[%emt 0:01:00]} c5 {[%emt 0:01:00]} 2. Nf3 {[%emt 0:00:00]} e6 {[%emt 0:00:00]} 3. d4 {[%emt 0:00:00]} cxd4 {[%emt 0:00:00]} 4. Nxd4 {[%emt 0:00:00]} a6 {[%emt 0:00:00]} 5. Bd3 {[%emt 0:00:00]} Bc5 {[%emt 0:00:00]} 6. Nb3 {[%emt 0:00:00]} Ba7 {[%emt 0:00:00]} 7. Qe2 {[%emt 0:00:00]} Ne7 {[%emt 0:00:00]} 8. Be3 {[%emt 0:00:30]} O-O {[%emt 0:00:30]} 9. Nc3 {[%emt 0:02:30]} b5 {[%emt 0:05:30]} 10. O-O {[%emt 0:02:30]} b4 {[%emt 0:07:30]} 11. Na4 {[%emt 0:01:30]} d6 {[%emt 0:02:30]} 12. e5 {[%emt 0:01:30]} Nd5 {[%emt 0:09:30]} 13. Bxa7 {[%emt 0:04:30]} Rxa7 {[%emt 0:00:00]} 14. a3 {[%emt 0:00:30]} Nf4 {[%emt 0:09:00]} 15. Qe3 {[%emt 0:11:30]} Qg5 {[%emt 0:00:00]} 16. Be4 {[%emt 0:01:30]} Bb7 {[%emt 0:02:00]} 17. exd6 {[%emt 0:03:30]} Nh3+ {[%emt 0:04:30]} 18. Qxh3 {[%emt 0:00:30]} Bxe4 {[%emt 0:00:30]} 19. axb4 {[%emt 0:01:30]} Bxc2 {[%emt 0:00:30]} 20. Nac5 {[%emt 0:00:30]} Qd5 {[%emt 0:08:30]} 21. Qe3 {[%emt 0:03:30]} Nc6 {[%emt 0:12:30]} 22. Na5 {[%emt 0:00:30]} Nd4 {[%emt 0:07:30]} 23. d7 {[%emt 0:00:30]} Rb8 {[%emt 0:06:30]} 24. Rfc1 {[%emt 0:10:30]} h6 {[%emt 0:02:30]} 25. Qxd4 {[%emt 0:02:30]} Qxd4 {[%emt 0:01:30]} 26. Nc6 {[%emt 0:00:00]} Qxb2 27. Nxb8 {[%emt 0:01:00]} Rxd7 {[%emt 0:09:15]} 28. Nbxd7 {[%emt 0:00:00]} h5 {[%emt 0:00:20]} 29. Nxa6 {[%emt 0:03:00]} h4 {[%emt 0:00:08]} 30. Nac5 {[%emt 0:04:30]} h3 {[%emt 0:01:30]} 31. b5 {[%emt 0:00:30]} Qxb5 {[%emt 0:01:14]} 32. Rxc2 {[%emt 0:01:30]} Qc6 {[%emt 0:00:01]} 33. gxh3 {[%emt 0:00:30]} Qf3 {[%emt 0:00:02]} 34. Rca2 {[%emt 0:01:30]} Qxh3 {[%emt 0:00:19]} 35. Ra3 {[%emt 0:00:30]} Qf5 {[%emt 0:00:49]} 36. Rg3 {[%emt 0:00:00]} g6 {[%emt 0:01:32]} 37. Ne4 {[%emt 0:00:00]} Kg7 {[%emt 0:00:16]} 38. Ndf6 {[%emt 0:00:30]} 1-0

[Event "10th Cesme Open-A 2024"]
[Site "Cesme"]
[Date "2024.06.25"]
[Round "4"]
[White "Samani, Yamac"]
[Black "Maruflu, Enes Yusuf"]
[Result "1-0"]
[ECO "B53"]
[WhiteElo "2360"]
[BlackElo "2141"]
[Annotator "RC"]
[PlyCount "75"]
[EventDate "2024.06.23"]
[EventType "swiss"]
[EventCountry "TUR"]
[SourceTitle "playchess.com"]
[Source "ChessBase"]
[SourceQuality "1"]
[TimeControl "5400+30"]

1. e4 {[%emt 0:01:00]} c5 {[%emt 0:01:00]} 2. Nf3 {[%emt 0:00:00]} d6 {[%emt 0:00:30]} 3. d4 {[%emt 0:00:00]} cxd4 {[%emt 0:00:00]} 4. Qxd4 {[%emt 0:00:30]} Nf6 {[%emt 0:01:00]} 5. Be2 {[%emt 0:00:30]} Nc6 {[%emt 0:01:30]} 6. Qe3 {[%emt 0:00:00]} g6 {[%emt 0:01:30]} 7. O-O {[%emt 0:01:00]} Bg7 {[%emt 0:00:30]} 8. h3 {[%emt 0:00:00]} O-O {[%emt 0:00:00]} 9. Rd1 {[%emt 0:00:00]} Nd7 {[%emt 0:01:00]} 10. Nc3 {[%emt 0:00:00]} b6 {[%emt 0:06:30]} 11. b3 {[%emt 0:10:00]} Bb7 {[%emt 0:02:30]} 12. Bb2 {[%emt 0:00:30]} Nc5 {[%emt 0:01:30]} 13. a3 {[%emt 0:03:30]} a5 {[%emt 0:02:30]} 14. Rab1 {[%emt 0:03:30]} Rc8 {[%emt 0:02:30]} 15. Nb5 {[%emt 0:05:30]} Bxb2 {[%emt 0:02:30]} 16. Rxb2 {[%emt 0:03:30]} Qe8 {[%emt 0:03:30]} 17. b4 {[%emt 0:06:30]} axb4 {[%emt 0:02:30]} 18. axb4 {[%emt 0:00:00]} Nd7 {[%emt 0:01:30]} 19. c3 {[%emt 0:02:00]} Nce5 {[%emt 0:06:30]} 20. Nd2 {[%emt 0:02:30]} Nf6 {[%emt 0:02:30]} 21. f4 {[%emt 0:03:30]} Ned7 {[%emt 0:01:30]} 22. g4 {[%emt 0:08:30]} Ba6 {[%emt 0:03:30]} 23. Ra2 {[%emt 0:07:30]} Bxb5 {[%emt 0:01:30]} 24. Bxb5 {[%emt 0:01:30]} Qd8 {[%emt 0:03:30]} 25. Nc4 {[%emt 0:02:30]} Qc7 {[%emt 0:00:30]} 26. e5 {[%emt 0:02:30]} Ne8 {[%emt 0:01:30]} 27. Rda1 {[%emt 0:05:30]} Rb8 {[%emt 0:02:30]} 28. Qf3 {[%emt 0:05:30]} Nc5 {[%emt 0:16:30]} 29. Ra7 {[%emt 0:05:30]} Nb7 {[%emt 0:06:30]} 30. R1a6 {[%emt 0:05:18]} dxe5 {[%emt 0:04:30]} 31. fxe5 {[%emt 0:00:28]} Qd8 {[%emt 0:02:30]} 32. Rxb6 {[%emt 0:01:39]} f6 {[%emt 0:02:51]} 33. Raxb7 {[%emt 0:02:55]} Rxb7 {[%emt 0:01:05]} 34. Rxb7 {[%emt 0:00:10]} Nc7 {[%emt 0:01:16]} 35. Ne3 {[%emt 0:05:55]} fxe5 {[%emt 0:01:19]} 36. Qd1 {[%emt 0:00:12]} Qc8 {[%emt 0:00:50]} 37. Bc6 {[%emt 0:00:58]} Ne8 {[%emt 0:00:50]} 38. Qd7 {[%emt 0:01:58]} 1-0

[Event "10th Cesme Open-A 2024"]
[Site "Cesme"]
[Date "2024.06.25"]
[Round "4"]
[White "Schekachikhin, Maksim"]
[Black "Pereverzev, Timofei"]
[Result "1/2-1/2"]
[ECO "B39"]
[WhiteElo "2343"]
[BlackElo "2019"]
[Annotator "RC"]
[PlyCount "58"]
[EventDate "2024.06.23"]
[EventType "swiss"]
[EventCountry "TUR"]
[SourceTitle "playchess.com"]
[Source "ChessBase"]
[SourceQuality "1"]
[TimeControl "5400+30"]

1. e4 {[%emt 0:01:00]} c5 {[%emt 0:01:00]} 2. Nf3 {[%emt 0:00:00]} g6 {[%emt 0:00:00]} 3. d4 {[%emt 0:00:00]} cxd4 {[%emt 0:00:00]} 4. Nxd4 {[%emt 0:00:30]} Nc6 {[%emt 0:00:00]} 5. c4 {[%emt 0:00:30]} Nf6 {[%emt 0:00:00]} 6. Nc3 {[%emt 0:00:00]} Bg7 {[%emt 0:00:00]} 7. Be3 {[%emt 0:01:00]} Ng4 {[%emt 0:00:00]} 8. Qxg4 Nxd4 {[%emt 0:00:30]} 9. Qd1 e5 {[%emt 0:00:00]} 10. h4 {[%emt 0:03:30]} h5 {[%emt 0:00:00]} 11. Qd2 {[%emt 0:06:30]} O-O {[%emt 0:00:30]} 12. Bd3 {[%emt 0:01:30]} d6 {[%emt 0:00:30]} 13. Nd5 {[%emt 0:06:30]} Be6 {[%emt 0:06:30]} 14. Bg5 {[%emt 0:03:30]} f6 {[%emt 0:00:30]} 15. Be3 {[%emt 0:00:00]} Bxd5 {[%emt 0:00:30]} 16. exd5 {[%emt 0:14:00]} f5 {[%emt 0:00:30]} 17. Bxd4 {[%emt 0:00:30]} exd4 {[%emt 0:00:30]} 18. O-O-O {[%emt 0:00:30]} Re8 {[%emt 0:03:30]} 19. Kb1 {[%emt 0:01:30]} Re5 {[%emt 0:03:30]} 20. f3 {[%emt 0:07:30]} Re3 {[%emt 0:11:30]} 21. Rdg1 {[%emt 0:18:30]} Qf6 {[%emt 0:08:30]} 22. Qd1 {[%emt 0:03:30]} Rae8 {[%emt 0:02:30]} 23. g4 {[%emt 0:02:30]} hxg4 {[%emt 0:04:30]} 24. fxg4 {[%emt 0:00:30]} f4 {[%emt 0:00:00]} 25. g5 {[%emt 0:01:30]} Qe5 {[%emt 0:00:00]} 26. Rf1 {[%emt 0:04:30]} Rg3 {[%emt 0:11:30]} 27. Re1 {[%emt 0:03:30]} Re3 {[%emt 0:00:00]} 28. Ref1 {[%emt 0:00:30]} Rg3 {[%emt 0:00:00]} 29. Re1 {[%emt 0:06:18]} Re3 {[%emt 0:00:30]} 1/2-1/2

[Event "10th Cesme Open-A 2024"]
[Site "Cesme"]
[Date "2024.06.25"]
[Round "4"]
[White "Ebrahimi Herab, Hamidreza"]
[Black "Grover, Sahaj"]
[Result "1/2-1/2"]
[ECO "D31"]
[WhiteElo "2333"]
[BlackElo "2510"]
[Annotator "TA"]
[PlyCount "96"]
[EventDate "2024.06.23"]
[EventType "swiss"]
[EventCountry "TUR"]
[SourceTitle "playchess.com"]
[Source "ChessBase"]
[SourceQuality "1"]
[TimeControl "5400+30"]

{[%evp 9,96,19,24,12,21,27,29,19,47,46,78,66,96,81,89,48,52,56,56,50,58,64,53,44,105,111,112,106,133,131,210,230,226,230,254,256,259,260,252,252,252,245,247,245,235,241,237,231,231,232,245,245,247,215,245,207,209,154,140,150,154,135,153,125,140,149,156,156,150,8,8,8,8,8,8,8,8,8,8,8,8,8,8,8,8,8,8,0,0]} 1. d4 {[%emt 0:02:00]} d5 {[%emt 0:01:00]} 2. c4 {[%emt 0:00:30]} e6 {[%emt 0:00:00]} 3. Nc3 {[%emt 0:00:30]} a6 {[%emt 0:00:00]} 4. cxd5 {[%emt 0:01:30]} exd5 {[%emt 0:00:30]} 5. Bf4 {[%emt 0:00:00]} Nf6 {[%emt 0:00:00]} 6. e3 {[%emt 0:00:00]} c5 {[%emt 0:00:00]} 7. Nge2 {[%emt 0:01:30]} Nc6 {[%emt 0:01:30]} 8. g3 {[%emt 0:02:30] White has an edge.} Be6 {[%emt 0:02:30]} 9. Bg2 {[%emt 0:00:30]} Be7 {[%emt 0:03:30]} 10. O-O {[%emt 0:02:30]} O-O {[%emt 0:04:30]} 11. dxc5 {[%emt 0:02:30]} h6 {[%emt 0:01:30]} 12. Rc1 {[%emt 0:04:30][%cal Ba1c1,Bc1c5,Bc5c3][%mdl 32]} Bxc5 {[%emt 0:02:30] [#]} 13. Nxd5 $1 {[%emt 0:05:30]} Bxd5 {[%emt 0:00:00]} 14. Bxd5 {[%emt 0:00:00]} Qxd5 {[%emt 0:00:00]} 15. Qxd5 {[%emt 0:00:00]} Nxd5 {[%emt 0:00:30] A dynamic duo of knights.} 16. Rxc5 {[%emt 0:00:30]} Ndb4 {[%emt 0:00:00]} ({Better is} 16... Rfd8 $14) 17. a3 $16 {[%emt 0:01:30]} Nd3 {[%emt 0:00:00][%csl LRb2,LRc5]} 18. Rc3 $36 {[%emt 0:00:00][%mdl 2048] White is really pushing.} Nxb2 {[%emt 0:05:30]} 19. Rb1 $1 {[%emt 0:00:00]} g5 {[%emt 0:02:30]} (19... Na4 $16 {was worth a try.}) 20. Rxb2 $18 {[%emt 0:02:30]} gxf4 {[%emt 0:00:30]} 21. Nxf4 {[%emt 0:00:30]} Na5 {[%emt 0:01:30]} 22. Rc5 {[%emt 0:01:30]} b5 {[%emt 0:00:30]} 23. a4 {[%emt 0:01:30]} Nc4 {[%emt 0:00:30]} 24. Rb4 {[%emt 0:00:00]} Nd6 {[%emt 0:02:30]} 25. Rd5 {[%emt 0:00:00]} Rfd8 {[%emt 0:02:30]} 26. Rbd4 {[%emt 0:00:30]} Nb7 {[%emt 0:00:30]} 27. axb5 {[%emt 0:00:00]} Rxd5 {[%emt 0:00:00]} 28. Nxd5 {[%emt 0:00:00]} axb5 {[%emt 0:00:00][%mdl 4096] Endgame. KRN-KRN} 29. Nc3 {[%emt 0:01:30] Dodges Ra4} Ra5 {[%emt 0:01:30]} 30. Kg2 {[%emt 0:01:30]} Kf8 {[%emt 0:00:00]} 31. g4 {[%emt 0:01:30]} Ke7 {[%emt 0:00:00]} 32. Kg3 {[%emt 0:01:30]} Nd6 {[%emt 0:01:30]} 33. Kf3 {[%emt 0:02:30]} Ke6 {[%emt 0:01:30]} 34. h4 {[%emt 0:00:30]} Ra8 {[%emt 0:02:30]} 35. Ke2 {[%emt 0:02:30]} Rb8 {[%emt 0:00:30]} 36. f4 {[%emt 0:00:30] White is more active.} f5 {[%emt 0:01:30]} 37. gxf5+ {[%emt 0:01:30]} Nxf5 {[%emt 0:00:30] [#]} 38. Rb4 {[%emt 0:00:00]} Nxh4 {[%emt 0:00:30] [#]} 39. Rxb5 {[%emt 0:01:00]} (39. Kf2 $1 $16) 39... Rxb5 $11 {[%emt 0:01:30] The position is equal.} 40. Nxb5 $16 {[%emt 0:00:30] And now e4 would win. KN-KN} Kf5 {[%emt 0:00:00]} 41. Kf2 {[%emt 0:00:30]} Kg4 {[%emt 0:00:00]} 42. Nc7 {[%emt 0:03:30]} Nf5 {[%emt 0:03:30]} 43. Nd5 {[%emt 0:00:30] Nf6+ would now be deadly.} Nd6 {[%emt 0:00:30]} 44. Nf6+ {[%emt 0:04:30]} Kf5 {[%emt 0:00:00]} 45. Ng8 {[%emt 0:03:30]} h5 {[%emt 0:01:00]} 46. Kf3 {[%emt 0:00:30]} Ke6 {[%emt 0:00:00] Wards off Ne7} 47. e4 {[%emt 0:00:30][%cal Be3e4,Be4e5][%mdl 32]} Kf7 {[%emt 0:00:00]} 48. e5 {[%emt 0:01:30]} Ne8 {[%emt 0:00:00] Blacks defense is rewarded with a draw.   Weighted Error Value: White=0.13 (very precise) /Black=0.10 (very precise) .  Mistake:       	White=1     	Black=2      Inaccurate:     	White=1     	Black=3      OK:         	White=18    	Black=21     Best:        	White=2     	Black=4      Strong:       	White=1     	---} 1/2-1/2